Cogmind - Beta 16.1 @@@ ROGUE MODE // 2026.02.14 @ 16:30:24 Player: Wyvern Result: Destroyed by S-10 Pest with Light Assault Rifle Performance ------------- Evolutions (1) 500 Regions Visited (2) 400 Robots Destroyed (25) 125 Value Destroyed (535) 535 Prototype IDs (0) 0 Alien Tech Used (0) 0 Bonus (0) 0 TOTAL SCORE: 1560 Bonus ------- None Cogmind --------- Core Integrity 0/400 Matter 101/300 Energy 100/100 System Corruption 0% Temperature Cool (0) Movement Core (50) Location -9/Materials Parts ------- > --- POWER (1) -------- (None) > --- PROPULSION (4) --- (None) > --- UTILITY (2) ------ (None) > --- WEAPON (2) ------- (None) > --- INVENTORY (5) ---- Light Ion Engine Wheel Flight Unit Heat Sink Weight Redist. System Peak State ------------ > --- POWER ------------ Light Ion Engine > --- PROPULSION ------- Hover Unit Hover Unit > --- UTILITY ---------- Small Storage Unit > --- WEAPON ----------- Light Assault Rifle Rocket Launcher > --- INVENTORY -------- Light Ion Engine Light Nuclear Core Wheel Flight Unit Heat Sink Weight Redist. System Light Assault Rifle [Rating: 8] Favorites ----------- Power Light Ion Engine Engine Light Ion Engine Propulsion Hover Unit Wheel Compact Wheel Hover Unit Hover Unit Utility Small Storage Unit Storage Small Storage Unit Weapon Light Assault Rifle Energy Gun EM Pulse Gun Energy Cannon Particle Cannon Ballistic Gun Light Assault Rifle Launcher Rocket Launcher Build | -11 -10 -9 ------- Run | Yrd Mat Mat Slots Evolved 2 | . . 2 Power . | . . . Propulsion 2 | . . 2 Utility . | . . . Weapon . | . . . Parts Attached 14 | 7 4 3 Power 2 | 1 . 1 Engine 2 | 1 . 1 Core . | . . . Reactor . | . . . Propulsion 6 | 3 3 . Treads . | . . . Leg . | . . . Wheel 3 | 3 . . Hover 3 | . 3 . Flight . | . . . Utility 1 | 1 . . Device . | . . . Storage 1 | 1 . . Processor . | . . . Hackware . | . . . Protection . | . . . Artifact . | . . . Weapon 5 | 2 1 2 Energy Gun 1 | 1 . . Energy Cannon 1 | . . 1 Ballistic Gun 2 | 1 1 . Ballistic Cannon . | . . . Launcher 1 | . . 1 Special Weapon . | . . . Impact Weapon . | . . . Slashing Weapon . | . . . Piercing Weapon . | . . . Special Melee Weapon . | . . . Unidentified Prototypes . | . . . Parts Lost 5 | . 2 3 Power 1 | . 1 . Propulsion 2 | . . 2 Utility . | . . . Weapon 2 | . 1 1 Highest Loss Streak 2 | . 2 2 To Critical Strikes . | . . . Average Backups 6 | 2 6 7 Power 2 | 1 2 2 Propulsion 1 | . 1 2 Utility 1 | . 1 2 Weapon 1 | . . 1 Tool/Special . | . . . Unused Backups 6 | . 1 5 Power 3 | . 1 2 Propulsion 1 | . . 1 Utility 2 | . . 2 Weapon . | . . . Tool/Special . | . . . Average Slot Usage (%) 60 | . 74 51 Engine 8 | . 6 9 Wheel 5 | . 14 . Hover 12 | . 12 11 Storage 11 | . 14 10 Energy Gun 2 | . 6 . Ballistic Gun 14 | . 18 11 Launcher 4 | . . 8 Peak Build Rating 8 | 6 7 8 Average Rating 5 | 4 5 6 On Entrance 4 | . 6 6 Avg Prop Armor Cover (%) . | . . . Naked Turns 38 | . . 38 Heaviest Build 13 | 13 13 13 Greatest Support 32 | 32 32 12 Greatest Overweight (x) 4 | . . 4 Average Overweight (x) . | . . 1 Largest Inventory Capacity 8 | 8 8 8 Average Capacity 7 | 6 8 7 Most Carried 8 | 5 8 8 Average Carried 6 | 2 6 7 Final Capacity 8 | 8 8 5 Final Carried 7 | 3 7 5 Class Distribution -------------------- 100% | Mutant Dominant Class ---------------- Mutant | -10/Materials Mutant | -9/Materials Resources | -11 -10 -9 ----------- Run | Yrd Mat Mat Matter Collected 354 | 272 37 45 Remotely . | . . . Salvage Created 571 | 83 137 351 Parts 37 | 1 7 29 Haulers Intercepted 1 | . 1 . Recyclers Shooed . | . . . Parts Field Recycled . | . . . Retrieved Matter . | . . . Parts Self-Destructed . | . . . Prevented . | . . . Parts Restored . | . . . Kills | -11 -10 -9 ------- Run | Yrd Mat Mat Combat Hostiles Destroyed 12 | . 1 11 Guns 2 | . 1 1 AOE 10 | . . 10 Classes Destroyed 10 | 1 4 5 Worker 3 | . 1 2 Builder 2 | . . 2 Tunneler 1 | . . 1 Hauler 1 | . 1 . Recycler 1 | 1 . . Watcher 5 | . 1 4 Swarmer 2 | . . 2 Grunt 7 | . 1 6 Brawler 1 | . . 1 Sentry 2 | . . 2 Best Kill Streak 10 | 1 2 10 Combat Bots Only 5 | . 1 5 Max Kills in Single Turn 4 | 1 1 4 Gunslinging . | . . . Exploded 2 | . . 2 Melee . | . . . Uniques/NPCs Destroyed . | . . . Combat | -11 -10 -9 -------- Run | Yrd Mat Mat Hostile Shots Fired 111 | . 6 105 Missed 29 | . 1 28 Hits 82 | . 5 77 Projectile 82 | . 5 77 Critical Strikes 4 | . . 4 Damage Taken 1041 | . 293 748 Core 512 | . 110 402 Absorbed by Shields . | . . . Core Remaining (%) 78 | 100 56 . Volleys Fired 51 | 2 10 39 Largest 2 | 2 2 2 Hottest 88 | 60 60 88 Shots Fired 81 | 4 18 59 Gun 61 | 4 18 39 Cannon 4 | . . 4 Launcher 16 | . . 16 Special . | . . . Kinetic 52 | 2 11 39 Thermal 4 | . . 4 Explosive 16 | . . 16 Electromagnetic 9 | 2 7 . Robot Hit Streak 10 | 2 10 10 Robot Miss Streak 4 | 1 2 4 Penetration Max . | . . . Secondary Targets . | . . . Shots Hit Robots 47 | 2 12 33 Core Hits 43 | 2 7 34 Critical Kills . | . . . Critical Parts Destroyed 1 | . . 1 Critical Strikes 1 | . . 1 Destroy 1 | . . 1 Melee Attacks . | . . . Impact . | . . . Slashing . | . . . Piercing . | . . . Sneak Attacks . | . . . Combat Hostiles . | . . . Follow-up Attacks . | . . . Damage Inflicted 1440 | 22 163 1255 Guns 330 | 22 118 190 Cannons 21 | . . 21 Explosions 1089 | . 45 1044 Melee . | . . . Ramming . | . . . Kinetic 243 | 10 43 190 Thermal 66 | . 45 21 Explosive 1044 | . . 1044 Electromagnetic 87 | 12 75 . Impact . | . . . Slashing . | . . . Piercing . | . . . Highest Corruption 4 | . 4 . Average Corruption 2 | . 2 . Corruption Purged . | . . . Corruption Blocked . | . . . Overload Shots . | . . . Overflow Damage 10 | . . 10 Projectiles . | . . . Explosions 10 | . . 10 Melee . | . . . Knockbacks . | . . . Impact . | . . . Kinetic . | . . . Secondary . | . . . Self-Inflicted Damage 62 | . 27 35 Shots 2 | . 1 1 Rammed . | . . . Targets Rammed . | . . . Kicked . | . . . Crushed . | . . . Highest Temperature 80 | 20 52 80 Average Temperature 20 | 15 21 20 Received Heat Transfer 144 | . 42 102 Siege Activations . | . . . Martial Activations . | . . . Shielding Activations . | . . . Robots Disrupted . | . . . Combat Hostiles . | . . . Robots Corrupted . | . . . Combat Hostiles . | . . . Parts Fried . | . . . Impact Corruptions . | . . . Robots Melted . | . . . Combat Hostiles . | . . . Parts Melted . | . . . Heat Transferred 87 | . 50 37 Parts Sabotaged . | . . . Parts Stolen . | . . . Parts Stripped . | . . . Power Chain Reactions 1 | . 1 . Alert | -11 -10 -9 ------- Run | Yrd Mat Mat Maximum Alert Level 1 | . . 1 Low Security (%) 61 | 100 100 31 Level 1 38 | . . 68 Level 2 . | . . . Level 3 . | . . . Level 4 . | . . . Level 5 . | . . . High Security . | . . . Max Security . | . . . Peak Influence 282 | 5 34 282 Initial 3 | . 3 . Average 110 | 1 4 194 Influence Increases 506 | 5 59 442 Destroy 0b10 Robot/C 240 | . 20 220 Destroy 0b10 Robot/NC 65 | 5 15 45 Destroy Leader 82 | . 14 68 Successful Hack 5 | . 5 . Disable Machine 45 | . . 45 Destroy Structure 69 | . 5 64 Influence Decreases 264 | . 64 200 Entered New Map 2 | . 2 . Time Decay 218 | . 48 170 Lost Part 44 | . 14 30 Squads Dispatched 3 | . 2 1 Investigation . | . . . Extermination . | . . . Reinforcement 3 | . 2 1 Assault . | . . . Garrison . | . . . Intercept . | . . . Searches Triggered . | . . . Construction Impeded 1 | . . 1 Haulers Reinforced . | . . . Active Scanning Responses . | . . . Cargo Convoy Interrupts . | . . . Stealth | -11 -10 -9 --------- Run | Yrd Mat Mat Distress Signals 2 | . . 2 Communications Jammed . | . . . Distress Signals . | . . . Times Spotted 24 | . 6 18 Peak Tracking Total 7 | . 2 7 Tactical Retreats . | . . . Traps | -11 -10 -9 ------- Run | Yrd Mat Mat Traps Triggered 2 | . 2 . Indirectly . | . . . Trap Hack Attempts . | . . . Triggered . | . . . Disarmed . | . . . Reprogrammed . | . . . Reused . | . . . Traps Extracted . | . . . Installed . | . . . Triggered . | . . . Machines | -11 -10 -9 ---------- Run | Yrd Mat Mat Machines Disabled 3 | . . 3 Max in Single Turn 1 | . . 1 Machines Repaired . | . . . Machines Dismantled . | . . . Machines Sabotaged . | . . . Overloaded Fab Kills . | . . . Hacking | -11 -10 -9 --------- Run | Yrd Mat Mat Machines Accessed 2 | . 1 1 Terminals 2 | . 1 1 Fabricators . | . . . Repair Stations . | . . . Recycling Units . | . . . Scanalyzers . | . . . Garrison Access . | . . . Total Hacks 3 | . 2 1 Successful 2 | . 2 . Failed 1 | . . 1 Catastrophic . | . . . Database Lockouts . | . . . Manual . | . . . Terminals 3 | . 2 1 Fabricators . | . . . Repair Stations . | . . . Recycling Units . | . . . Scanalyzers . | . . . Garrison Access . | . . . Terminal Hacks 2 | . 2 . Dispatch Records 1 | . 1 . Hauler Manifests 1 | . 1 . Fabricator Hacks . | . . . Repair Station Hacks . | . . . Recycling Unit Hacks . | . . . Scanalyzer . | . . . Garrison Access Hacks . | . . . Unauthorized Hacks . | . . . Terminals . | . . . Fabricators . | . . . Repair Stations . | . . . Recycling Units . | . . . Scanalyzers . | . . . Garrison Access . | . . . Data Cores Recovered . | . . . Used . | . . . Hacking Detections 2 | . 1 1 Full Trace Events . | . . . Feedback Events . | . . . Feedback Blocked . | . . . Robot Schematics Acquired . | . . . Robots Built . | . . . Authchips . | . . . Time . | . . . Total Robot Build Rating . | . . . Part Schematics Acquired . | . . . Parts Built . | . . . Authchips . | . . . Time . | . . . Total Part Build Rating . | . . . Part Studies Acquired . | . . . Parts Repaired . | . . . Time . | . . . Parts Recycled . | . . . Recycled Matter . | . . . Retrieved Matter . | . . . Retrieved Components . | . . . Parts Scanalyzed . | . . . Part Schematics Acquired . | . . . Parts Damaged . | . . . Bothacking | -11 -10 -9 ------------ Run | Yrd Mat Mat Used RIF Installer . | . . . Robots Hacked . | . . . Non-combat . | . . . Combat . | . . . Robot Hacks Applied . | . . . Relay Couplers Released . | . . . Fabnet Peak Effective % . | . . . Robots Rewired . | . . . Allies Hacked . | . . . Hacks Repelled . | . . . Allies | -11 -10 -9 -------- Run | Yrd Mat Mat Total Allies . | . . . Largest Group . | . . . Highest-Rated Group . | . . . Highest-Rated Ally . | . . . Total Orders . | . . . Ally Attacks . | . . . Total Damage . | . . . Kills . | . . . Allies Corrupted . | . . . Allies Melted . | . . . Intel | -11 -10 -9 ------- Run | Yrd Mat Mat Active Infowar (turns) . | . . . Robot Analysis Total . | . . . Derelict Logs Recovered . | . . . Drone Launches . | . . . Drone Recoveries . | . . . Exploration | -11 -10 -9 ------------- Run | Yrd Mat Mat Turns Passed 688 | 59 244 385 Spaces Moved 512 | 47 286 179 Core 22 | 14 . 8 Treads . | . . . Legs . | . . . Wheels 133 | 33 100 . Hover 357 | . 186 171 Flight . | . . . Fastest Speed 50 | 50 56 50 Average Speed 96 | 80 71 139 Slowest Speed 250 | 100 100 250 Overloaded Moves . | . . . Propulsion Burnouts . | . . . Robots Hopped . | . . . Potential Cave-ins . | . . . Cave-ins Triggered . | . . . Exploration Rate (%) 27 | 3 55 23 Regions Visited 2 Branch Regions . Pre-discovered Areas . | . . . Known Exits Taken . | . . . Unknown Exits Taken 2 | 1 1 . Scrap Searched . | . . . Spaces Dug . | . . . Terrain Destroyed 80 | . 3 77 Melee . | . . . Projectile 2 | . . 2 AOE 78 | . 3 75 Terrain Rammed . | . . . Walls Destroyed . | . . . Machines Disabled . | . . . Actions | -11 -10 -9 --------- Run | Yrd Mat Mat Total 637 | 65 309 263 Wait 40 | . . 40 Move 510 | 46 285 179 Hop . | . . . Pick Up 17 | 9 6 2 Fast Attach 2 | . 2 . Attach 10 | 7 1 2 Detach 1 | 1 . . Swap 2 | . 1 1 Drop 4 | . 4 . Fire 51 | 2 10 39 Melee . | . . . Ram . | . . . Kick . | . . . Crush . | . . . Escape Stasis . | . . . Rewire . | . . . Trap . | . . . Miscellaneous . | . . . Route ------- -11/Scrapyard -10/Materials (discovered 2 exits: *Mat / [*Min]) -9/Materials History --------- Turn | Location | Event 10 | -11/Scrapyard | Discovered new exit (range 16) 60 | -11/Scrapyard | Entered Materials 128 | -10/Materials | Met 8R-AWN 235 | -10/Materials | Discovered new exit (range 12) 286 | -10/Materials | Discovered new exit (range 16) 304 | -10/Materials | Build established: Mutant 304 | -10/Materials | Entered another Materials area 304 | -9/Materials | Evolved 2 slots: Propulsion x2 651 | -9/Materials | Released all parts (4) 661 | -9/Materials | Core integrity fell below 50% 681 | -9/Materials | Core integrity fell below 20% 689 | -9/Materials | Destroyed by S-10 Pest with Light Assault Rifle Last Messages --------------- K-01 Serf collects debris. U-05 Engineer lays Concrete. U-05 Engineer builds a Wall. K-01 Serf collects debris. U-05 Engineer builds a Wall. K-01 Serf collects debris. K-01 Serf destroyed. U-05 Engineer lays Concrete. The unstable cave ceiling collapses. U-05 Engineer lays Concrete. K-01 Serf collects debris. U-05 Engineer lays Concrete. K-01 Serf collects debris. U-05 Engineer builds a Wall. K-01 Serf collects debris. U-05 Engineer lays Concrete. K-01 Serf collects debris. U-05 Engineer lays Concrete. K-01 Serf collects debris. U-05 Engineer lays Concrete. Map ----- +----------------------------------------------------+ | "" # "T "" " # #??????????? ??????? | | "" # "" # +#####?????????? ????????? | | "" + ## ############+#########?? | | ?? | | #????????? | | # #????????? | | #### # # ###########% ###############????????? | | ? ############ # #########?????????????? | | # """ #?# # # #???????????? | | # "R" """ #?# # # """ #???????????? | | # " " """ ### " # + """ ! #???????????? | | # """ ## """ # # """ !!! #???????????? | | # ### + # !!! ????????????? | | # #?#"" # # !!! #???????????? | | ?! ??#"T # # ????????????? | | ??########??#"" # ###########?????????????? | | ????????????# # #??????????????????????? | | ????????????########## #??????????????????????? | | ?????????????????????# ##??????????????????????? | | ??????????????######## ###?????????????????????? | | ??????????????#====! # # ####??????????????????? | | ??????????????#====!!# u #??????????????????? | | ??????????????# [! #k k # #???????????????????? | | ??????????????### # u%## ######+###???????????? | | ????????????????# s%* ????????? | | ????????????????# @u! ????????? | | ????????????????# ^ s ????????? | | ????????????????# ############??????????? | | ????????????????# ^ ^ #?????????????????????? | | ????????????????# #?????????????????????? | | ??????????????? ????????????????????? | | ????????????? +???????????????????? | | ???????????? #???????????????????? | | ????????????####+##### #???????????????????? | | ?????????????????????# #???????????????????? | | ?????????????????????+ #???????????????????? | | ?????????????????????#########???????????????????? | | ?????????????????????????????????????????????????? | | ?????????????????????????????????????????????????? | | ?????????????????????????????????????????????????? | | ?????????????????????????????????????????????????? | | ?????????????????????????????????????????????????? | | ?????????????????????????????????????????????????? | | ?????????????????????????????????????????????????? | | ?????????????????????????????????????????????????? | | ?????????????????????????????????????????????????? | | ?????????????????????????????????????????????????? | | ?????????????????????????????????????????????????? | | ?????????????????????????????????????????????????? | | ?????????????????????????????????????????????????? | +----------------------------------------------------+ Best States ------------- Heat Dissipation 28 Energy Generation 10 Energy Capacity 250 Matter Stores 300 Matter Capacity 300 Sight Range 16 Terrain Scan Density 10 Evasion (%) 53 Item Schematics ----------------- None Robot Schematics ------------------ None Fabricated ------------ Nothing Repaired ---------- Nothing Studied --------- None Alien Tech Used ----------------- None Achievements -------------- Follow The Leader Resistances Are Futile Challenges ------------ None Game ------ Seed DefenseAdvancedUnit Manual? 0 Play Time 00:11:50 Cumulative 5.9 hours Start 2026.02.14 @ 16:22:00 End 2026.02.14 @ 16:30:24 Sessions 1 Manual Loads 0 Difficulty Rogue Special Mode None Game No. 10 Rogue 10 Adventurer 0 Explorer 0 Win Type - Total 0 Types 0/0/0/0/0/0/0/0/0/0 Lore% 8 Gallery% 9 Achievement% 11 Wizard Run 0 Options --------- Layout 1 ASCII 0 Keyboard 0 Movement Mouse Keybinds 0 Fullscreen 1 Font 32/SmallcapsGlow Map View 50x35 Zoom Use 0% Tactical HUD 0 Map Filters NONE Filters NONE Steam 0 RUN: 5950e54a-a62e-43f1-9598-2769764d45bc